fUSD/lending_fUSD_20250521
["ID","MTS","AMOUNT","RATE_DAILY","PERIOD"]
[361809374,1747823458815,-1642.25,0.00032876,5]
[361809375,1747823458826,-7928.56,0.00032876,5]
[361809376,1747823458836,-15894.82,0.00032876,5]
[361809377,1747823458846,-535.54,0.00032876,5]
[361809378,1747823458856,-3648.84,0.00032876,5]
[361809379,1747823458866,-420.0,0.00032876,5]
[361809380,1747823458876,-18415.06,0.00032876,5]
[361809381,1747823458886,-156.85515144,0.00032876,5]
[361809382,1747823458896,-400.69583114,0.00032876,5]
[361809383,1747823458906,-420.0,0.00032876,5]
[361809384,1747823458916,-420.0,0.00032876,5]
[361809385,1747823458926,-2111.71,0.00032876,5]
[361809386,1747823458936,-584.64,0.00032876,5]
[361809387,1747823458946,-2534.37,0.00032876,5]
[361809388,1747823458956,-1096.3,0.00032876,5]
[361809389,1747823458966,-420.0,0.00032876,5]
[361809390,1747823458976,-420.0,0.00032876,5]
[361809391,1747823458987,-420.0,0.00032876,5]
[361809392,1747823458996,-420.0,0.00032876,5]
[361809393,1747823459007,-2727.38,0.00032876,5]
[361809394,1747823459016,-481.82,0.00032876,5]
[361809395,1747823459025,-4064.18,0.00032876,5]
[361809396,1747823459036,-2791.01,0.00032876,5]
[361809397,1747823459047,-1605.11,0.00032876,5]
[361809398,1747823459057,-583.63,0.00032876,5]
[361809399,1747823459067,-420.0,0.00032876,5]
[361809400,1747823459076,-420.0,0.00032876,5]
[361809401,1747823459086,-420.0,0.00032876,5]
[361809402,1747823459096,-3277.38,0.00032876,5]
[361809403,1747823459107,-1946.19,0.00032876,5]
[361809404,1747823459117,-420.0,0.00032876,5]
[361809405,1747823459127,-420.0,0.00032876,5]
[361809406,1747823459136,-4162.95,0.00032876,5]
[361809407,1747823459147,-486.64,0.00032876,5]
[361809408,1747823459157,-1793.09,0.00032876,5]
[361809409,1747823459167,-2365.3,0.00032876,5]
[361809410,1747823459177,-5030.39,0.00032876,5]
[361809411,1747823459187,-853.5,0.00032876,5]
[361809412,1747823459196,-420.0,0.00032876,5]
[361809413,1747823459207,-420.0,0.00032876,5]
[361809414,1747823459217,-420.0,0.00032876,5]
[361809415,1747823459227,-1065.78,0.00032876,5]
[361809416,1747823459237,-420.0,0.00032876,5]
[361809417,1747823459246,-5351.26,0.00032876,5]
[361809418,1747823459256,-8618.58,0.00032876,5]
[361809419,1747823459268,-420.0,0.00032876,5]
[361809420,1747823459277,-3564.21,0.00032876,5]
[361809421,1747823459287,-1488.03,0.00032876,5]
[361809422,1747823459297,-4366.01,0.00032876,5]
[361809423,1747823459307,-1284.33,0.00032876,5]
[361809424,1747823459317,-5387.66,0.00032876,5]
[361809425,1747823459327,-420.0,0.00032876,5]
[361809426,1747823459336,-420.0,0.00032876,5]
[361809427,1747823459350,-643.95,0.00032876,5]
[361809428,1747823459360,-11304.41,0.00032876,5]
[361809429,1747823459369,-420.0,0.00032876,5]
[361809430,1747823459380,-441.74,0.00032876,5]
[361809431,1747823459391,-420.0,0.00032876,5]
[361809432,1747823459400,-751.7,0.00032876,5]
[361809433,1747823459410,-873.4,0.00032876,5]
[361809434,1747823459421,-420.0,0.00032876,5]
[361809435,1747823459431,-1096.95,0.00032876,5]
[361809436,1747823459441,-781.82,0.00032876,5]
[361809437,1747823459451,-420.0,0.00032876,5]
[361809438,1747823459462,-871.43,0.00032876,5]
[361809439,1747823459472,-420.0,0.00032876,5]
[361809440,1747823459482,-420.0,0.00032876,5]
[361809441,1747823459493,-5264.38,0.00032876,5]
[361809442,1747823459503,-420.0,0.00032876,5]
[361809443,1747823459514,-778.01,0.00032876,5]
[361809444,1747823459524,-3424.15,0.00032876,5]
[361809445,1747823459534,-6336.25,0.00032876,5]
[361809446,1747823459544,-420.0,0.00032876,5]
[361809447,1747823459553,-365.18093238,0.00032876,5]
[361809448,1747823459564,-575.11,0.00032876,5]
[361809449,1747823459574,-2227.33,0.00032876,5]
[361809450,1747823459584,-469.12,0.00032876,5]
[361809451,1747823459594,-420.0,0.00032876,5]
[361809452,1747823459604,-2778.38,0.00032876,5]
[361809453,1747823459614,-183.762831,0.00032876,5]
[361809454,1747823459624,-2282.35,0.00032876,5]
[361809455,1747823459634,-420.0,0.00032876,5]
[361809456,1747823459644,-420.0,0.00032876,5]
[361809457,1747823459654,-420.0,0.00032876,5]
[361809458,1747823459664,-420.0,0.00032876,5]
[361809459,1747823459674,-2508.06,0.00032876,5]
[361809460,1747823459685,-477.54,0.00032876,5]
[361809461,1747823459695,-420.0,0.00032876,5]
[361809462,1747823459706,-45711.39,0.00032876,5]
[361809463,1747823459716,-500.9,0.00032876,5]
[361809464,1747823459726,-1438.01,0.00032876,5]
[361809465,1747823459736,-420.0,0.00032876,5]
[361809466,1747823459746,-420.0,0.00032876,5]
[361809467,1747823459757,-492.73,0.00032876,5]
[361809468,1747823459767,-2994.99,0.00032876,5]
[361809469,1747823459777,-298.67830662,0.00032876,5]
[361809470,1747823459788,-2847.74,0.00032876,5]
[361809471,1747823459798,-845.16,0.00032876,5]
[361809472,1747823459808,-420.0,0.00032876,5]
[361809473,1747823459818,-908.75,0.00032876,5]
[361809474,1747823459829,-7033.02,0.00032876,5]
[361809475,1747823459839,-420.0,0.00032876,5]
[361809476,1747823459849,-420.0,0.00032876,5]
[361809477,1747823459860,-20631.06,0.00032876,5]
[361809478,1747823459871,-1653.01,0.00032876,5]
[361809479,1747823459882,-420.0,0.00032876,5]
[361809480,1747823459892,-420.0,0.00032876,5]
[361809481,1747823459903,-440.6,0.00032876,5]
[361809482,1747823459913,-480.69,0.00032876,5]
[361809483,1747823459923,-420.0,0.00032876,5]
[361809484,1747823459934,-1811.64,0.00032876,5]
[361809485,1747823459944,-420.0,0.00032876,5]
[361809486,1747823459955,-420.0,0.00032876,5]
[361809487,1747823459965,-420.0,0.00032876,5]
[361809488,1747823459974,-1620.28,0.00032876,5]
[361809489,1747823459984,-1675.59,0.00032876,5]
[361809490,1747823459995,-1341.01,0.00032876,5]
[361809491,1747823460005,-2039.96,0.00032876,5]
[361809492,1747823460015,-420.0,0.00032876,5]
[361809493,1747823460026,-1650.39,0.00032876,5]
[361809494,1747823460036,-659.87,0.00032876,5]
[361809495,1747823460046,-2331.07,0.00032876,5]
[361809496,1747823460056,-1130.47,0.00032876,5]
[361809497,1747823460067,-8529.77,0.00032876,5]
[361809498,1747823460078,-7445.4,0.00032876,5]
[361809499,1747823460088,-7445.4,0.00032876,5]
[361809500,1747823460098,-1170.52,0.00032876,5]
[361809501,1747823460107,-7445.4,0.00032876,5]
[361809502,1747823460117,-7445.4,0.00032876,5]
[361809503,1747823460127,-420.0,0.00032876,5]
[361809504,1747823460137,-400.26004902,0.00032876,5]
[361809505,1747823460147,-7445.4,0.00032876,5]
[361809506,1747823460156,-500.0,0.00032876,2]
[361809507,1747823460166,-7445.4,0.00032876,5]
[361809508,1747823460176,-500.0,0.00032876,2]
[361809509,1747823460186,-7445.4,0.00032876,5]
[361809510,1747823460196,-500.0,0.00032876,2]
[361809511,1747823460206,-7445.4,0.00032876,5]
[361809512,1747823460215,-500.0,0.00032876,2]
[361809513,1747823460225,-7445.4,0.00032876,5]
[361809514,1747823460235,-500.0,0.00032876,2]
[361809515,1747823460244,-7445.4,0.00032876,5]
[361809516,1747823460254,-500.0,0.00032876,2]
[361809517,1747823460264,-7445.4,0.00032876,5]
[361809518,1747823460275,-394.17482232,0.00032876,2]
[361809519,1747823460284,-1019.14,0.00032876,5]
[361809520,1747823460294,-13852.49,0.00032876,5]
[361809521,1747823460304,-420.0,0.00032876,5]
[361809522,1747823460314,-594.46,0.00032876,5]
[361809523,1747823460324,-420.0,0.00032876,5]
[361809524,1747823460333,-528.88,0.00032876,5]
[361809525,1747823460343,-420.0,0.00032876,5]
[361809526,1747823460356,-729.81,0.00032876,5]
[361809527,1747823460366,-6448.31,0.00032876,5]
[361809528,1747823460377,-1260.39,0.00032876,5]
[361809529,1747823460386,-157.265004,0.00032876,5]
[361809530,1747823460396,-1228.4,0.00032876,5]
[361809531,1747823460406,-1228.4,0.00032876,5]
[361809532,1747823460415,-1228.4,0.00032876,5]
[361809533,1747823460428,-4031.81,0.00032876,5]
[361809534,1747823460438,-1228.4,0.00032876,5]
[361809535,1747823460449,-1228.4,0.00032876,5]
[361809536,1747823460460,-420.0,0.00032876,5]
[361809537,1747823460469,-1228.4,0.00032876,5]
[361809538,1747823460479,-1228.4,0.00032876,5]
[361809539,1747823460489,-1826.19,0.00032876,5]
[361809540,1747823460499,-15980.3,0.00032876,2]
[361809541,1747823460508,-1228.4,0.00032876,5]
[361809542,1747823460519,-569.82,0.00032876,5]
[361809543,1747823460528,-1228.4,0.00032876,5]
[361809544,1747823460538,-1228.4,0.00032876,5]
[361809545,1747823460548,-1991.55,0.00032876,5]
[361809546,1747823460559,-420.0,0.00032876,5]
[361809547,1747823460568,-420.0,0.00032876,5]
[361809548,1747823460578,-711.84,0.00032876,5]
[361809549,1747823460588,-1316.77,0.00032876,5]
[361809550,1747823460598,-1559.3,0.00032876,5]
[361809551,1747823460608,-932.88,0.00032876,5]
[361809552,1747823460618,-420.0,0.00032876,5]
[361809553,1747823460629,-420.0,0.00032876,5]
[361809554,1747823460639,-1672.61,0.00032876,5]
[361809555,1747823460649,-1828.91,0.00032876,5]
[361809556,1747823460659,-420.0,0.00032876,5]
[361809557,1747823460669,-420.0,0.00032876,5]
[361809558,1747823460680,-6643.48,0.00032876,5]
[361809559,1747823460690,-420.0,0.00032876,5]
[361809560,1747823460699,-5987.12,0.00032876,5]
[361809561,1747823460710,-420.0,0.00032876,5]
[361809562,1747823460719,-420.0,0.00032876,5]
[361809563,1747823460728,-4970.74,0.00032876,5]
[361809564,1747823460738,-420.0,0.00032876,5]
[361809565,1747823461109,-908.99,0.00032876,5]
[361809566,1747823461140,-420.0,0.00032876,5]
[361809567,1747823461148,-1754.62,0.00032876,5]
[361809568,1747823461156,-636.17,0.00032876,5]
[361809569,1747823461166,-907.69,0.00032876,5]
[361809570,1747823461176,-420.0,0.00032876,5]
[361809571,1747823461186,-434.27,0.00032876,5]
[361809572,1747823461195,-420.0,0.00032876,5]
[361809573,1747823461206,-420.0,0.00032876,5]
[361809574,1747823461218,-14282.24,0.00032876,5]
[361809575,1747823461228,-1727.02,0.00032876,5]
[361809576,1747823461238,-2354.7,0.00032876,5]
[361809577,1747823461247,-2934.17,0.00032876,5]
[361809578,1747823461257,-154.385502,0.00032876,5]
[361809579,1747823461267,-420.0,0.00032876,5]
[361809580,1747823461278,-2098.09,0.00032876,5]
[361809581,1747823461288,-247.0956032,0.00032876,5]
[361809582,1747823461297,-2370.12,0.00032876,5]
[361809583,1747823461306,-635.77,0.00032876,5]
[361809584,1747823461316,-1608.41,0.00032876,5]
[361809585,1747823461324,-2448.57,0.00032876,5]
[361809586,1747823461333,-565.39,0.00032876,5]
[361809587,1747823461341,-2132.27,0.00032876,5]
[361809588,1747823461353,-420.0,0.00032876,5]
[361809589,1747823461363,-400.43281611,0.00032876,5]
[361809590,1747823461374,-420.0,0.00032876,5]
[361809591,1747823461384,-832.67,0.00032876,5]
[361809592,1747823461395,-674.57,0.00032876,5]
[361809593,1747823461405,-420.0,0.00032876,5]
[361809594,1747823461415,-1444.81,0.00032876,5]
[361809595,1747823461425,-1244.04,0.00032876,5]
[361809596,1747823461436,-14461.5,0.00032876,5]
[361809597,1747823461447,-4167.33,0.00032876,5]
[361809598,1747823461457,-5215.67,0.00032876,5]
[361809599,1747823461467,-888.13,0.00032876,5]
[361809600,1747823461478,-548.09,0.00032876,5]
[361809601,1747823461488,-420.0,0.00032876,5]
[361809602,1747823461497,-420.0,0.00032876,5]
[361809603,1747823461507,-207938.64,0.00032876,5]
[361809604,1747823461518,-420.0,0.00032876,5]
[361809605,1747823461529,-420.0,0.00032876,5]
[361809606,1747823461540,-420.0,0.00032876,5]
[361809607,1747823461550,-2319.06,0.00032876,5]
[361809608,1747823461561,-5582.21,0.00032876,5]
[361809609,1747823461572,-3257.11,0.00032876,5]
[361809610,1747823461583,-1507.21,0.00032876,5]
[361809611,1747823461593,-420.0,0.00032876,5]
[361809612,1747823461603,-420.0,0.00032876,5]
[361809613,1747823461614,-1493.55,0.00032876,5]
[361809614,1747823461624,-2557.88,0.00032876,5]
[361809615,1747823461634,-420.0,0.00032876,5]
[361809616,1747823461644,-1088.44,0.00032876,5]
[361809617,1747823461654,-697.67,0.00032876,5]
[361809618,1747823461664,-2873.2,0.00032876,5]
[361809619,1747823461674,-420.0,0.00032876,5]
[361809620,1747823461683,-420.0,0.00032876,5]
[361809621,1747823461694,-420.0,0.00032876,5]
[361809622,1747823461704,-420.0,0.00032876,5]
[361809623,1747823461714,-673.17,0.00032876,5]
[361809624,1747823461724,-480.01,0.00032876,5]
[361809625,1747823461735,-420.0,0.00032876,5]
[361809626,1747823461745,-1657.0,0.00032876,5]
[361809627,1747823461755,-2282.96,0.00032876,5]
[361809628,1747823461765,-420.0,0.00032876,5]
[361809629,1747823461775,-420.0,0.00032876,5]
[361809630,1747823461785,-799.92,0.00032876,5]
[361809631,1747823461795,-18765.11,0.00032876,5]
[361809632,1747823461806,-1063.9,0.00032876,5]
[361809633,1747823461816,-420.0,0.00032876,5]
[361809634,1747823461825,-1687.06,0.00032876,5]
[361809635,1747823461835,-1719.68,0.00032876,5]
[361809636,1747823461845,-3847.23,0.00032876,5]
[361809637,1747823461855,-1687.06,0.00032876,5]
[361809638,1747823461866,-420.0,0.00032876,5]
[361809639,1747823461875,-1687.06,0.00032876,5]
[361809640,1747823461886,-1687.06,0.00032876,5]
[361809641,1747823461896,-1687.06,0.00032876,5]
[361809642,1747823461905,-420.0,0.00032876,5]
[361809643,1747823461915,-1687.06,0.00032876,5]
[361809644,1747823461925,-474.32,0.00032876,5]
[361809645,1747823461934,-549.05,0.00032876,5]
[361809646,1747823461944,-1687.06,0.00032876,5]
[361809647,1747823461954,-420.0,0.00032876,5]
[361809648,1747823461963,-1687.06,0.00032876,5]
[361809649,1747823461973,-2564.95,0.00032876,5]
[361809650,1747823461983,-1687.06,0.00032876,5]
[361809651,1747823461992,-1687.06,0.00032876,5]
[361809652,1747823462003,-1687.06,0.00032876,5]
[361809653,1747823462013,-400.6492932,0.00032876,5]
[361809654,1747823462023,-420.0,0.00032876,5]
[361809655,1747823462032,-1818.07,0.00032876,5]
[361809656,1747823462043,-42262.48,0.00032876,5]
[361809657,1747823462053,-420.0,0.00032876,5]
[361809658,1747823462063,-1554.78,0.00032876,5]
[361809659,1747823462072,-516.93,0.00032876,5]
[361809660,1747823462082,-4510.74,0.00032876,5]
[361809661,1747823462092,-420.0,0.00032876,5]
[361809662,1747823462102,-3137.08,0.00032876,5]
[361809663,1747823462112,-506.82,0.00032876,5]
[361809664,1747823462122,-9532.22,0.00032876,5]
[361809665,1747823462132,-420.0,0.00032876,5]
[361809666,1747823462142,-1001.23,0.00032876,5]
[361809667,1747823462151,-1349.86,0.00032876,5]
[361809668,1747823462162,-874.84,0.00032876,5]
[361809669,1747823462171,-2359.68,0.00032876,5]
[361809670,1747823462182,-627.61,0.00032876,5]
[361809671,1747823462192,-670.93,0.00032876,5]
[361809672,1747823462202,-420.0,0.00032876,5]
[361809673,1747823462212,-1909.1,0.00032876,5]
[361809674,1747823462222,-3667.82,0.00032876,5]
[361809675,1747823462232,-482.03371997,0.00032876,5]
[361809676,1747823462241,-3774.82,0.00032876,5]
[361809677,1747823462251,-713.73,0.00032876,5]
[361809678,1747823462261,-420.0,0.00032876,5]
[361809679,1747823462271,-420.0,0.00032876,5]
[361809680,1747823462282,-400.0,0.00032876,5]
[361809681,1747823462291,-420.0,0.00032876,5]
[361809682,1747823462301,-1201.04,0.00032876,5]
[361809683,1747823462311,-420.0,0.00032876,5]
[361809684,1747823462322,-420.0,0.00032876,5]
[361809685,1747823462332,-420.0,0.00032876,5]
[361809686,1747823462343,-420.0,0.00032876,5]
[361809687,1747823462355,-420.0,0.00032876,5]
[361809688,1747823462365,-340.51,0.00032877,2]
[361809689,1747823462374,-500.0,0.00032877,2]
[361809690,1747823462384,-280.72769,0.0003288,2]
[361809691,1747823462394,-305.2,0.00032881,2]
[361809692,1747823462403,-304.41,0.00032881,2]
[361809693,1747823462413,-303.85,0.00032881,2]
[361809694,1747823462423,-303.99,0.00032881,2]
[361809695,1747823462433,-301.78,0.00032881,2]
[361809696,1747823462443,-305.4,0.00032881,2]
[361809697,1747823462452,-302.77,0.00032881,2]
[361809698,1747823462462,-301.01,0.00032881,2]
[361809699,1747823462471,-303.83,0.00032881,2]
[361809700,1747823462480,-302.8,0.00032881,2]
[361809701,1747823462490,-305.7,0.00032881,2]
[361809702,1747823462499,-305.4,0.00032881,2]
[361809703,1747823462509,-300.21,0.00032881,2]
[361809704,1747823462519,-304.58,0.00032881,2]
[361809705,1747823462529,-304.62,0.00032881,2]
[361809706,1747823462539,-792.89,0.00032881,5]
[361809707,1747823462548,-417.64,0.00032882,2]
[361809708,1747823462558,-417.64,0.00032891,2]
[361809709,1747823462567,-417.64,0.00032899,2]
[361809710,1747823462577,-61098.54,0.000329,14]
[361809711,1747823462587,-400.0,0.000329,12]
[361809712,1747823462596,-167.24790176,0.00032903,5]
[361809713,1747823462606,-150.0,0.00032903,5]
[361809714,1747823462616,-150.0,0.00032903,5]
[361809715,1747823462625,-150.0,0.00032903,5]
[361809716,1747823462634,-500.0,0.00032903,2]
[361809717,1747823462644,-150.0,0.00032903,5]
[361809718,1747823462654,-500.0,0.00032903,5]
[361809719,1747823462664,-150.0,0.00032903,5]
[361809720,1747823462673,-500.0,0.00032904,2]
[361809721,1747823462683,-417.64,0.00032908,2]
[361809722,1747823462693,-417.64,0.00032917,2]
[361809723,1747823462703,-274.65450403,0.00032919,15]
[361809724,1747823462712,-151.0,0.00032924,7]
[361809725,1747823462721,-417.64,0.00032925,2]
[361809726,1747823462731,-297.0677831,0.00032931,5]
[361809727,1747823462741,-203.31638223,0.00032931,5]
[361809728,1747823462751,-167.77368511,0.00032931,5]
[361809729,1747823462761,-500.0,0.00032931,2]
[361809730,1747823462771,-150.0,0.00032931,5]
[361809731,1747823462782,-500.0,0.00032931,5]
[361809732,1747823462792,-500.0,0.00032932,2]
[361809733,1747823462802,-417.64,0.00032934,2]
[361809734,1747823462812,-500.0,0.00032937,2]
[361809735,1747823462823,-417.64,0.00032942,2]
[361809736,1747823462833,-417.64,0.00032951,2]
[361809737,1747823462843,-500.0,0.00032958,2]
[361809738,1747823462853,-500.0,0.00032958,5]
[361809739,1747823462863,-500.0,0.00032959,2]
[361809740,1747823462872,-500.0,0.00032986,2]
[361809741,1747823462882,-500.0,0.00032986,5]
[361809742,1747823462892,-500.0,0.00032987,2]
[361809743,1747823462902,-173.0,0.00033,14]
[361809744,1747823462912,-853.85614654,0.00033004,2]
[361809745,1747823462922,-500.0,0.00033013,2]
[361809746,1747823462933,-500.0,0.00033013,5]
[361809747,1747823462943,-500.0,0.00033014,2]
[361809748,1747823462953,-500.0,0.0003304,2]
[361809749,1747823462963,-500.0,0.0003304,5]
[361809750,1747823462974,-389.406766,0.00033041,2]
[361809751,1747823462985,-664.77,0.00033049,5]
[361809752,1747823462995,-193.39975728,0.00033049,6]
[361809753,1747823463004,-4276.1164807,0.0003305,2]
[361809754,1747823463014,-5413.75245113,0.0003305,2]
[361809755,1747823463025,-189.53857222,0.00033068,2]
[361809756,1747823463035,-500.0,0.00033068,5]
[361809757,1747823463046,-274.65450403,0.00033073,15]
[361809758,1747823463057,-500.0,0.00033095,5]
[361809759,1747823463067,-301.66,0.00033114,2]
[361809760,1747823463078,-302.8,0.00033114,2]
[361809761,1747823463089,-304.87,0.00033114,2]
[361809762,1747823463098,-500.0,0.00033123,5]
[361809763,1747823463108,-500.0,0.00033128,2]
[361809764,1747823463118,-509.65215358,0.00033128,2]
[361809765,1747823463127,-1687.06,0.00033128,5]
[361809766,1747823463137,-171.30495117,0.0003314,2]
[361809767,1747823463146,-792.89,0.00033148,5]
[361809768,1747823463156,-1000.0,0.00033149,2]
[361809769,1747823463166,-664.77,0.00033149,5]
[361809770,1747823463177,-664.77,0.00033149,5]
[361809771,1747823463188,-664.77,0.00033149,5]
[361809772,1747823463198,-664.77,0.00033149,5]
[361809773,1747823463208,-664.77,0.00033149,5]
[361809774,1747823463218,-664.77,0.00033149,5]
[361809775,1747823463227,-664.77,0.00033149,5]
[361809776,1747823463237,-664.77,0.00033149,5]
[361809777,1747823463248,-664.77,0.00033149,5]
[361809778,1747823463257,-664.77,0.00033149,5]
[361809779,1747823463268,-664.77,0.00033149,5]
[361809780,1747823463277,-664.95874007,0.00033149,5]
[361809781,1747823463287,-792.89,0.00033149,5]
[361809782,1747823463298,-792.89,0.00033149,5]
[361809783,1747823463307,-792.89,0.00033149,5]
[361809784,1747823463318,-792.89,0.00033149,5]
[361809785,1747823463328,-792.89,0.00033149,5]
[361809786,1747823463337,-792.89,0.00033149,5]
[361809787,1747823463353,-792.89,0.00033149,5]
[361809788,1747823463362,-792.89,0.00033149,5]
[361809789,1747823463372,-793.09102457,0.00033149,5]
[361809790,1747823463382,-7445.4,0.00033149,5]
[361809791,1747823463393,-7445.4,0.00033149,5]
[361809792,1747823463403,-7445.4,0.00033149,5]
[361809793,1747823463413,-7445.4,0.00033149,5]
[361809794,1747823463426,-7445.4,0.00033149,5]
[361809795,1747823463438,-7445.4,0.00033149,5]
[361809796,1747823463448,-7445.4,0.00033149,5]
[361809797,1747823463458,-7445.4,0.00033149,5]
[361809798,1747823463469,-1228.4,0.00033149,5]
[361809799,1747823463479,-1228.4,0.00033149,5]
[361809800,1747823463490,-1228.4,0.00033149,5]
[361809801,1747823463500,-1228.4,0.00033149,5]
[361809802,1747823463510,-1228.4,0.00033149,5]
[361809803,1747823463520,-1228.4,0.00033149,5]
[361809804,1747823463530,-1228.4,0.00033149,5]
[361809805,1747823463660,-1228.4,0.00033149,5]
[361809806,1747823463671,-1687.06,0.00033149,5]
[361809807,1747823463681,-1687.06,0.00033149,5]
[361809808,1747823463691,-1687.06,0.00033149,5]
[361809809,1747823463701,-1687.06,0.00033149,5]
[361809810,1747823463711,-1687.06,0.00033149,5]
[361809811,1747823463721,-1687.06,0.00033149,5]
[361809812,1747823463732,-1687.06,0.00033149,5]
[361809813,1747823463742,-1687.06,0.00033149,5]
[361809814,1747823463753,-1687.06,0.00033149,5]
[361809815,1747823463763,-1687.06,0.00033149,5]
[361809816,1747823463774,-1687.06,0.00033149,5]
[361809817,1747823463785,-1687.13057652,0.00033149,5]
[361809818,1747823463795,-500.0,0.0003315,5]
[361809819,1747823463806,-420.0,0.0003315,5]
[361809820,1747823463816,-420.0,0.0003315,5]
[361809821,1747823463826,-420.0,0.0003315,5]
[361809822,1747823463835,-151.0,0.0003315,7]
[361809823,1747823463845,-305.20001975,0.0003315,5]
[361809824,1747823463855,-521.69240868,0.0003315,5]
[361809825,1747823463865,-420.0,0.0003315,2]
[361809826,1747823463875,-238.10994108,0.0003315,5]
[361809827,1747823463883,-420.0,0.0003315,5]
[361809828,1747823463892,-420.0,0.0003315,5]
[361809829,1747823463902,-435.0446525,0.0003315,5]
[361809830,1747823463911,-420.0,0.0003315,5]
[361809831,1747823463921,-420.0,0.0003315,5]
[361809832,1747823463931,-420.0,0.0003315,5]
[361809833,1747823463939,-420.0,0.0003315,5]
[361809834,1747823463949,-420.0,0.0003315,5]
[361809835,1747823463959,-420.0,0.0003315,5]
[361809836,1747823463969,-205.12786194,0.0003315,5]
[361809837,1747823463979,-420.0,0.0003315,5]
[361809838,1747823463990,-420.0,0.0003315,5]
[361809839,1747823464000,-420.0,0.0003315,5]
[361809840,1747823464010,-420.0,0.0003315,5]
[361809841,1747823464020,-352.28391481,0.0003315,5]
[361809842,1747823464028,-420.0,0.0003315,3]
[361809843,1747823464038,-420.0,0.0003315,5]
[361809844,1747823464047,-420.0,0.0003315,5]
[361809845,1747823464058,-420.0,0.0003315,5]
[361809846,1747823464068,-379.81586423,0.0003315,2]
[361809847,1747823464078,-420.0,0.0003315,5]
[361809848,1747823464087,-420.0,0.0003315,5]
[361809849,1747823464096,-420.0,0.0003315,5]
[361809850,1747823464106,-420.0,0.0003315,5]
[361809851,1747823464115,-868.63,0.0003315,5]
[361809852,1747823464125,-420.0,0.0003315,5]
[361809853,1747823464135,-420.0,0.0003315,5]
[361809854,1747823464144,-420.0,0.0003315,5]
[361809855,1747823464155,-420.0,0.0003315,5]
[361809856,1747823464165,-771.73,0.0003315,5]
[361809857,1747823464175,-420.0,0.0003315,5]
[361809858,1747823464185,-1206.97,0.0003315,5]
[361809859,1747823464194,-420.0,0.0003315,5]
[361809860,1747823464204,-420.0,0.0003315,5]
[361809861,1747823464213,-420.0,0.0003315,5]
[361809862,1747823464224,-1764.15,0.0003315,5]
[361809863,1747823464232,-420.0,0.0003315,5]
[361809864,1747823464242,-497.1,0.0003315,5]
[361809865,1747823464250,-550.16,0.0003315,5]
[361809866,1747823464259,-420.0,0.0003315,5]
[361809867,1747823464269,-420.0,0.0003315,5]
[361809868,1747823464279,-420.0,0.0003315,5]
[361809869,1747823464288,-965.56,0.0003315,5]
[361809870,1747823464297,-154.58840885,0.0003315,5]
[361809871,1747823464306,-562.65,0.0003315,5]
[361809872,1747823464315,-616.51,0.0003315,5]
[361809873,1747823464323,-420.0,0.0003315,5]